Cogmind - Beta 16 @@@ ROGUE MODE // 2026.01.13 @ 20:17:24 Player: AngelSpirit Result: Destroyed by G-47 Trooper with Particle Gun Performance ------------- Evolutions (2) 1000 Regions Visited (10) 2000 Robots Destroyed (111) 555 Value Destroyed (4706) 4706 Prototype IDs (28) 560 Alien Tech Used (0) 0 Bonus (3268) 3268 TOTAL SCORE: 12089 Bonus ------- High Alert Combat Kills 323 Follower Combat Kills 1078 Entered Garrisons 600 Used RIF Installer 1000 Aligned with FarCom 300 Friendly Fire -33 Cogmind --------- Core Integrity 0/550 Matter 132/300 Energy 279/280 System Corruption 10% Temperature Cool (75) Movement Rolling (105) Ox1 Location -8/Garrison Parts ------- > --- POWER (1) -------- Cooled Ion Engine > --- PROPULSION (4) --- Wheel Armored Huge Wheel > --- UTILITY (4) ------ Improved Heat Sink High-capacity Storage Unit Core Analyzer Improved Medium Armor Plating > --- WEAPON (2) ------- Gatling Laser Gatling Laser > --- INVENTORY (20) --- Gravmag System Gravmag System Gravmag System Gravmag System Huge Storage Unit High-capacity Matter Pod (134) Relay Coupler [NC] (32) Relay Coupler [Sentry] (28) Relay Coupler [Hunter] (18) Improved Trap Extractor (2/6 Blade) Gatling Laser Gatling Laser Gatling Laser Assault Cannon Assault Cannon Rocket Launcher Remote Datajack Peak State ------------ > --- POWER ------------ Light Angular Momentum Engine > --- PROPULSION ------- Wheel Wheel Armored Huge Wheel > --- UTILITY ---------- Huge Storage Unit Improved Medium Armor Plating Hacking Suite Hacking Suite > --- WEAPON ----------- Advanced Assault Cannon Advanced Assault Cannon > --- INVENTORY -------- Carbon-fiber Leg Carbon-fiber Leg Carbon-fiber Leg High-capacity Matter Pod Core Analyzer Core Analyzer Improved Medium Armor Plating Improved Medium Armor Plating Improved Medium Armor Plating Relay Coupler [NC] Relay Coupler [NC] Relay Coupler [Grunt] Relay Coupler [Grunt] Relay Coupler [Grunt] Relay Coupler [Sentry] Improved Trap Extractor Gatling Laser Gatling Laser Gatling Laser Gatling Laser Gatling Laser Gauss Rifle Rocket Launcher Remote Datajack Deploy-a-Sentry [Rating: 42] Favorites ----------- Power Deuterium Engine Engine Deuterium Engine Propulsion Wheel Wheel Wheel Utility Huge Storage Unit Device Improved Heat Sink Storage Huge Storage Unit Processor Core Analyzer Hackware Hacking Suite Protection Hardened Medium Armor Plating Weapon Advanced Assault Cannon Energy Gun EM Pulse Gun Ballistic Gun Gauss Rifle Ballistic Cannon Advanced Assault Cannon Launcher Rocket Launcher Special Weapon Remote Datajack Build | -11 -10 -10 -10 -9 -8 -8 -8 -8 -8 -8 ------- Run | Yrd Mat Min Exi Min Mat Gar Mat Gar Mat Gar Slots Evolved 4 | . . . . . 4 . . . . . Power . | . . . . . . . . . . . Propulsion 2 | . . . . . 2 . . . . . Utility 2 | . . . . . 2 . . . . . Weapon . | . . . . . . . . . . . Parts Attached 86 | 7 10 . . 4 13 3 8 13 21 7 Power 7 | 1 1 . . . 1 . 1 . 2 1 Engine 7 | 1 1 . . . 1 . 1 . 2 1 Core . | . . . . . . . . . . . Reactor . | . . . . . . . . . . . Propulsion 20 | 2 3 . . . 3 3 2 1 5 1 Treads . | . . . . . . . . . . . Leg . | . . . . . . . . . . . Wheel 20 | 2 3 . . . 3 3 2 1 5 1 Hover . | . . . . . . . . . . . Flight . | . . . . . . . . . . . Utility 36 | 2 4 . . 4 4 . 1 7 11 3 Device 5 | 1 . . . 2 . . . . 1 1 Storage 6 | 1 1 . . 1 . . . . 2 1 Processor 2 | . . . . . . . . 1 . 1 Hackware 10 | . . . . . 1 . . 5 4 . Protection 13 | . 3 . . 1 3 . 1 1 4 . Artifact . | . . . . . . . . . . . Weapon 23 | 2 2 . . . 5 . 4 5 3 2 Energy Gun 8 | 2 . . . . 1 . 1 2 1 1 Energy Cannon . | . . . . . . . . . . . Ballistic Gun 6 | . . . . . 2 . . 2 2 . Ballistic Cannon 7 | . 2 . . . 2 . 2 . . 1 Launcher 1 | . . . . . . . 1 . . . Special Weapon 1 | . . . . . . . . 1 . . Impact Weapon . | . . . . . . . . . . . Slashing Weapon . | . . . . . . . . . . . Piercing Weapon . | . . . . . . . . . . . Special Melee Weapon . | . . . . . . . . . . . Unidentified Prototypes 2 | . . . . . 1 . 1 . . . Parts Lost 18 | . 3 . . . 1 3 1 1 5 4 Power 1 | . . . . . . . 1 . . . Propulsion 11 | . 1 . . . 1 3 . 1 3 2 Utility 3 | . 2 . . . . . . . . 1 Weapon 3 | . . . . . . . . . 2 1 Highest Loss Streak 4 | . 2 . . . 1 1 1 1 4 4 To Critical Strikes . | . . . . . . . . . . . Average Backups 20 | . 11 15 16 18 19 20 20 22 22 22 Power 1 | . 1 3 3 3 2 1 . . . . Propulsion 3 | . 4 5 5 6 5 1 1 . 2 3 Utility 9 | . 2 4 4 5 7 13 12 14 11 8 Weapon 6 | . 2 3 4 3 5 4 6 7 7 8 Tool/Special . | . . . . . . . . . . . Unused Backups 50 | . 4 . 2 1 13 4 4 5 1 16 Power 4 | . . . . . 3 1 . . . . Propulsion 9 | . . . . 1 1 . . . . 7 Utility 17 | . . . . . . 3 3 5 1 5 Weapon 19 | . 4 . 1 . 9 . 1 . . 4 Tool/Special 1 | . . . 1 . . . . . . . Average Slot Usage (%) 94 | . 99 100 75 99 91 99 100 87 96 85 Engine 10 | . 14 14 14 14 9 9 9 9 9 9 Wheel 30 | . 27 28 28 28 35 35 36 26 34 22 Device 1 | . 2 . . . 1 . . . 2 4 Storage 10 | . 14 14 14 14 9 9 9 9 9 9 Hackware 8 | . . . . . 7 9 9 17 12 . Protection 12 | . 11 14 14 13 10 18 18 6 11 18 Energy Gun 2 | . 16 . . . . . . 1 . 4 Ballistic Gun 5 | . . . . . 4 . . 3 13 10 Ballistic Cannon 9 | . 11 28 3 27 12 18 18 8 2 2 Special Weapon 1 | . . . . . . . . 5 1 . Peak Build Rating 42 | 7 12 12 12 20 38 38 37 41 42 40 Average Rating 28 | 5 10 12 10 16 30 36 35 37 31 36 On Entrance 21 | . 7 12 12 11 17 38 36 34 35 32 Avg Prop Armor Cover (%) . | . . . . . . . . . . . Naked Turns . | . . . . . . . . . . . Heaviest Build 117 | 13 54 54 54 94 117 117 117 117 112 117 Greatest Support 54 | 26 26 24 24 24 52 52 50 50 54 54 Greatest Overweight (x) 4 | . 4 2 2 3 2 3 2 3 4 3 Average Overweight (x) 1 | . 1 2 1 2 1 2 2 2 1 1 Largest Inventory Capacity 25 | 8 20 20 20 25 25 25 25 25 25 25 Average Capacity 23 | 7 17 20 20 22 25 25 25 25 25 23 Most Carried 25 | 1 15 15 20 25 25 25 25 25 25 25 Average Carried 21 | . 11 15 18 21 23 24 24 24 23 22 Final Capacity 25 | 8 20 20 20 25 25 25 25 25 25 20 Final Carried 25 | 1 15 15 19 25 25 25 25 23 25 17 Class Distribution -------------------- 50% | Mutant 27% | Scavenger-Mutant 19% | Bothacker-Mutant Dominant Class ---------------- Mutant | -10/Materials Mutant | -10/Mines Mutant | -10/Exiles Mutant | -9/Mines Mutant | -8/Materials Mutant | -8/Garrison Mutant | -8/Materials Bothacker-Mutant | -8/Garrison Scavenger-Mutant | -8/Materials Scavenger-Mutant | -8/Garrison Resources | -11 -10 -10 -10 -9 -8 -8 -8 -8 -8 -8 ----------- Run | Yrd Mat Min Exi Min Mat Gar Mat Gar Mat Gar Matter Collected 5569 | 270 270 . . 146 531 581 464 1133 1343 831 Remotely . | . . . . . . . . . . . Salvage Created 4060 | 111 429 . . 9 545 441 225 651 952 697 Parts 211 | 4 25 . . 2 21 19 14 35 63 28 Haulers Intercepted 7 | . 2 . . . 1 . 3 . 1 . Recyclers Shooed 3 | . . . . . 2 . 1 . . . Parts Field Recycled . | . . . . . . . . . . . Retrieved Matter . | . . . . . . . . . . . Parts Self-Destructed . | . . . . . . . . . . . Prevented . | . . . . . . . . . . . Parts Restored . | . . . . . . . . . . . Kills | -11 -10 -10 -10 -9 -8 -8 -8 -8 -8 -8 ------- Run | Yrd Mat Min Exi Min Mat Gar Mat Gar Mat Gar Combat Hostiles Destroyed 82 | . 9 . . . 8 13 7 11 20 14 Guns 28 | . 4 . . . 6 . . . 8 10 Cannons 37 | . 3 . . . 2 13 5 7 7 . AOE 17 | . 2 . . . . . 2 4 5 4 Classes Destroyed 15 | 2 6 . . . 1 2 . 3 1 . Worker 8 | . 1 . . 1 1 . . . 5 . Builder 1 | . . . . . . . . . 1 . Tunneler 1 | 1 . . . . . . . . . . Hauler 7 | . 2 . . . 1 . 3 . 1 . Recycler 3 | 1 . . . . 1 . . . 1 . Operator 3 | . 1 . . . 1 . . . 1 . Watcher 5 | . 3 . . . . . . . 2 . Swarmer 17 | . 2 . . . . . 3 3 5 4 Cutter 4 | . . . . . . . . 2 . 2 Grunt 36 | . 7 . . . 6 7 3 . 8 5 Brawler 1 | . . . . . . 1 . . . . Duelist 1 | . . . . . . 1 . . . . Sentry 14 | . . . . . 2 4 1 . 7 . Hunter 2 | . . . . . . . . 2 . . Programmer 8 | . . . . . . . . 5 . 3 Best Kill Streak 6 | 2 4 . . 1 6 3 3 4 4 5 Combat Bots Only 5 | . 3 . . . 5 3 3 4 3 5 Max Kills in Single Turn 4 | 1 2 . . 1 1 1 2 4 3 3 Gunslinging . | . . . . . . . . . . . Exploded 4 | . 1 . . . . . 2 4 2 3 Melee . | . . . . . . . . . . . Uniques/NPCs Destroyed . | . . . . . . . . . . . Combat | -11 -10 -10 -10 -9 -8 -8 -8 -8 -8 -8 -------- Run | Yrd Mat Min Exi Min Mat Gar Mat Gar Mat Gar Hostile Shots Fired 438 | . 37 . . . 46 53 35 91 68 108 Missed 117 | . 8 . . . 10 12 12 25 17 33 Hits 321 | . 29 . . . 36 41 23 66 51 75 Melee 10 | . . . . . . 2 . 2 . 6 Projectile 311 | . 29 . . . 36 39 23 64 51 69 AOE 4 | . . . . . . . . 2 . 2 Critical Strikes 26 | . . . . . 1 3 1 7 2 12 Part Disruptions 2 | . . . . 1 . . . . 1 . Damage Taken 4943 | . 431 . . 15 544 672 322 961 839 1159 Core 643 | . 87 . . . 73 30 14 163 145 131 Absorbed by Shields . | . . . . . . . . . . . Ignored by Resistances 54 | . . . . . . . . . 18 36 Regen/Repaired (Parts) 51 | . . . . . 5 . . . 46 . Core Remaining (%) 82 | 100 . . . 65 . . . . . . Volleys Fired 475 | 5 37 1 . 1 48 47 28 124 87 97 Largest 2 | 2 2 2 . 2 2 2 2 2 2 2 Hottest 160 | 80 80 66 . 66 80 80 80 160 108 160 Shots Fired 798 | 10 74 2 . 3 96 91 54 155 131 182 Gun 418 | 10 44 . . . 74 . . 65 54 171 Cannon 324 | . 30 2 . 3 22 91 52 71 47 6 Launcher 12 | . . . . . . . 2 1 4 5 Special 44 | . . . . . . . . 18 26 . Kinetic 661 | . 30 2 . 3 96 91 52 118 99 170 Thermal 27 | . . . . . . . . 18 2 7 Explosive 12 | . . . . . . . 2 1 4 5 Electromagnetic 54 | 10 44 . . . . . . . . . Robot Hit Streak 35 | 6 8 . . 4 13 12 5 30 23 35 Robot Miss Streak 6 | 1 5 . . . 3 6 3 5 5 6 Penetration Max 1 | . . . . . . . . 1 1 1 Secondary Targets 3 | . . . . . 1 . . . . 2 Max Gunslinging Chain 1 | . . . . . 1 . . . . 1 Shots Hit Robots 481 | 8 40 . . 2 57 44 29 97 80 124 Core Hits 217 | 3 18 . . 1 19 19 14 52 36 55 Critical Kills . | . . . . . . . . . . . Critical Parts Destroyed 6 | . . . . . 1 . . 1 . 4 Critical Strikes 15 | . 2 . . . 1 2 1 3 2 4 Destroy 6 | . . . . . 1 . . 1 . 4 Blast 8 | . 1 . . . . 2 1 2 2 . Corrupt 1 | . 1 . . . . . . . . . Melee Attacks . | . . . . . . . . . . . Impact . | . . . . . . . . . . . Slashing . | . . . . . . . . . . . Piercing . | . . . . . . . . . . . Sneak Attacks . | . . . . . . . . . . . Combat Hostiles . | . . . . . . . . . . . Follow-up Attacks . | . . . . . . . . . . . Damage Inflicted 10562 | 135 922 . . 42 1100 1263 1054 2028 2084 1934 Guns 4759 | 108 359 . . . 804 . . 1159 654 1675 Cannons 4395 | . 380 . . 42 296 1263 908 720 786 . Explosions 1408 | 27 183 . . . . . 146 149 644 259 Melee . | . . . . . . . . . . . Ramming . | . . . . . . . . . . . Kinetic 8002 | . 380 . . 42 1100 1263 908 1339 1396 1574 Thermal 895 | 27 183 . . . . . . 540 44 101 Explosive 1172 | . . . . . . . 146 149 618 259 Electromagnetic 493 | 108 359 . . . . . . . 26 . Impact . | . . . . . . . . . . . Slashing . | . . . . . . . . . . . Piercing . | . . . . . . . . . . . Highest Corruption 10 | . 2 2 2 2 . . . 5 5 10 Average Corruption 4 | . 2 2 2 2 . . . 3 5 7 Corruption Purged . | . . . . . . . . . . . Corruption Blocked . | . . . . . . . . . . . Effects 135 | . 7 . 2 12 . . . 26 65 23 Message Errors 34 | . 2 . 1 2 . . . 6 16 7 Matter Fused 35 | . 2 . . 4 . . . 5 15 9 Heat Flow Errors 19 | . . . . 2 . . . 7 9 1 Energy Discharges 11 | . . . . 1 . . . 3 7 . Parts Rejected 1 | . . . . . . . . . 1 . Parts Fused 4 | . . . . . . . . 1 2 1 Data Loss (minor) 16 | . 2 . 1 2 . . . 2 5 4 Data Loss (major) 6 | . 1 . . . . . . 2 3 . Misfires 5 | . . . . 1 . . . . 4 . Alerts 2 | . . . . . . . . . 2 . Weapon Failures 2 | . . . . . . . . . 1 1 Overload Shots . | . . . . . . . . . . . Overflow Damage 211 | . 56 . . . 14 . 8 45 88 . Projectiles 66 | . 3 . . . 14 . 4 45 . . Explosions 145 | . 53 . . . . . 4 . 88 . Melee . | . . . . . . . . . . . Knockbacks 23 | . 4 . . . 2 6 6 2 3 . Impact . | . . . . . . . . . . . Kinetic 22 | . 4 . . . 2 6 5 2 3 . Secondary 1 | . . . . . . . 1 . . . Self-Inflicted Damage 256 | . 132 . . . . . . 36 35 53 Shots 6 | . 2 . . . . . . 1 1 2 Rammed . | . . . . . . . . . . . Targets Rammed . | . . . . . . . . . . . Kicked . | . . . . . . . . . . . Crushed . | . . . . . . . . . . . Highest Temperature 325 | 90 195 15 . 208 194 325 255 280 258 159 Average Temperature 80 | 46 55 10 . 77 52 107 69 100 77 54 Received Heat Transfer 1509 | . 123 . . . 297 306 135 18 387 243 Effects 7 | . . . . . . 4 . 1 2 . Energy Bleed 2 | . . . . . . 1 . . 1 . Interference 5 | . . . . . . 3 . 1 1 . Siege Activations . | . . . . . . . . . . . Martial Activations . | . . . . . . . . . . . Shielding Activations . | . . . . . . . . . . . Robots Disrupted . | . . . . . . . . . . . Combat Hostiles . | . . . . . . . . . . . Robots Corrupted . | . . . . . . . . . . . Combat Hostiles . | . . . . . . . . . . . Parts Fried 1 | 1 . . . . . . . . . . Impact Corruptions . | . . . . . . . . . . . Robots Melted 2 | . . . . . . . . 2 . . Combat Hostiles . | . . . . . . . . . . . Parts Melted 3 | . . . . . . . . 2 1 . Heat Transferred 1775 | 50 200 . . . . . . 1225 100 200 Parts Sabotaged . | . . . . . . . . . . . Parts Stolen . | . . . . . . . . . . . Parts Stripped . | . . . . . . . . . . . Power Chain Reactions 4 | 1 3 . . . . . . . . . Alert | -11 -10 -10 -10 -9 -8 -8 -8 -8 -8 -8 ------- Run | Yrd Mat Min Exi Min Mat Gar Mat Gar Mat Gar Maximum Alert Level 3 | . . . . . . 3 2 3 2 3 Low Security (%) 34 | 100 100 100 . 100 100 28 . 5 . 2 Level 1 32 | . . . . . . 36 63 25 62 29 Level 2 31 | . . . . . . 28 36 63 37 66 Level 3 1 | . . . . . . 6 . 4 . 2 Level 4 . | . . . . . . . . . . . Level 5 . | . . . . . . . . . . . High Security . | . . . . . . . . . . . Max Security . | . . . . . . . . . . . Peak Influence 741 | 5 122 19 . 5 151 700 570 737 586 741 Initial 358 | . . 19 . . . 87 341 133 358 168 Average 297 | 1 43 19 . . 49 353 383 480 367 527 Influence Increases 4341 | 10 402 . . 5 386 643 517 694 1051 633 Destroy 0b10 Robot/C 2300 | . 180 . . . 260 380 300 280 520 380 Destroy 0b10 Robot/NC 205 | 10 35 . . 5 25 . 35 25 55 15 Destroy Leader 460 | . 40 . . . 84 20 80 30 156 50 Allied During Kill 169 | . . . . . 10 31 41 7 63 17 Trap Triggered on 0b10 30 | . . . . . . . . . . 30 Successful Hack 95 | . 41 . . . 3 17 . 22 12 . Disable Machine 255 | . 45 . . . . . . 30 165 15 Anti-Garrison Action 400 | . . . . . . 150 . 200 . 50 Destroy Structure 277 | . 31 . . . 4 30 31 100 50 31 Lose Combat Pursuer 150 | . 30 . . . . 15 30 . 30 45 Influence Decreases 3600 | 10 352 31 19 5 252 77 1011 163 1529 151 Entered New Map 999 | . . 31 19 . . 47 359 73 379 91 Time Decay 1551 | 10 332 . . 5 222 . 302 . 680 . Lost Part 170 | . 20 . . . 10 30 10 10 50 40 Lost Ally 430 | . . . . . 20 . 40 80 270 20 Purge Threat 450 | . . . . . . . 300 . 150 . Squads Dispatched 19 | . 3 1 . . 3 . 3 . 9 . Investigation 6 | . 2 . . . 1 . 1 . 2 . Extermination . | . . . . . . . . . . . Reinforcement 10 | . 1 . . . 2 . 1 . 6 . Assault 1 | . . 1 . . . . . . . . Garrison 2 | . . . . . . . 1 . 1 . Intercept . | . . . . . . . . . . . Searches Triggered . | . . . . . . . . . . . Construction Impeded 1 | . . . . . . . 1 . . . Haulers Reinforced . | . . . . . . . . . . . Active Scanning Responses . | . . . . . . . . . . . Cargo Convoy Interrupts . | . . . . . . . . . . . Stealth | -11 -10 -10 -10 -9 -8 -8 -8 -8 -8 -8 --------- Run | Yrd Mat Min Exi Min Mat Gar Mat Gar Mat Gar Distress Signals 10 | . 3 . . . . . 2 . 5 . Communications Jammed . | . . . . . . . . . . . Distress Signals . | . . . . . . . . . . . Times Spotted 171 | . 18 . . . 17 16 22 23 53 22 Peak Tracking Total 10 | . 3 . . . 5 4 5 10 7 4 Tactical Retreats 7 | . 1 . . . . 1 1 . 1 3 Traps | -11 -10 -10 -10 -9 -8 -8 -8 -8 -8 -8 ------- Run | Yrd Mat Min Exi Min Mat Gar Mat Gar Mat Gar Traps Triggered 12 | . 4 . . 1 1 2 1 . 2 1 Indirectly . | . . . . . . . . . . . Trap Hack Attempts . | . . . . . . . . . . . Triggered . | . . . . . . . . . . . Disarmed . | . . . . . . . . . . . Reprogrammed . | . . . . . . . . . . . Reused 3 | . . . . . . . . . . 3 Traps Extracted . | . . . . . . . . . . . Installed 3 | . . . . . . . . . . 3 Triggered 3 | . . . . . . . . . . 3 Most Traps Carried 5 | . . . . 5 5 5 5 5 5 5 Machines | -11 -10 -10 -10 -9 -8 -8 -8 -8 -8 -8 ---------- Run | Yrd Mat Min Exi Min Mat Gar Mat Gar Mat Gar Machines Disabled 24 | . 3 . . . . 4 . 4 11 2 Max in Single Turn 1 | . 1 . . . . 1 . 1 1 1 Garrison Relay 6 | . . . . . . 3 . 2 . 1 Machines Repaired . | . . . . . . . . . . . Machines Dismantled . | . . . . . . . . . . . Machines Sabotaged . | . . . . . . . . . . . Overloaded Fab Kills . | . . . . . . . . . . . Hacking | -11 -10 -10 -10 -9 -8 -8 -8 -8 -8 -8 --------- Run | Yrd Mat Min Exi Min Mat Gar Mat Gar Mat Gar Machines Accessed 33 | . 9 . 2 1 3 3 3 4 7 1 Terminals 22 | . 7 . . . 1 3 2 4 4 1 Fabricators . | . . . . . . . . . . . Repair Stations 2 | . . . . . 1 . . . 1 . Recycling Units 3 | . 2 . . . . . . . 1 . Scanalyzers . | . . . . . . . . . . . Garrison Access 3 | . . . . . 1 . 1 . 1 . Total Hacks 86 | . 31 . 2 1 9 5 7 6 23 2 Successful 48 | . 20 . 2 1 3 4 3 4 11 . Failed 38 | . 11 . . . 6 1 4 2 12 2 Catastrophic 7 | . . . . . 1 1 2 1 1 1 Database Lockouts . | . . . . . . . . . . . Manual 49 | . 27 . 1 . 3 2 6 2 8 . Terminals 64 | . 28 . . . 3 5 6 6 14 2 Fabricators . | . . . . . . . . . . . Repair Stations 6 | . . . . . 3 . . . 3 . Recycling Units 8 | . 3 . . . . . . . 5 . Scanalyzers . | . . . . . . . . . . . Garrison Access 5 | . . . . . 3 . 1 . 1 . Terminal Hacks 22 | . 5 . 2 1 . 3 2 4 5 . Record 1 | . . . 1 . . . . . . . Robot Schematic 1 | . 1 . . . . . . . . . Robot Analysis 4 | . 3 . . . . . . . 1 . Open Door 2 | . . . . 1 . 1 . . . . Emergency Access Points 2 | . . . . . . 1 . 1 . . Unreport Threat 3 | . . . . . . . 2 . 1 . Locate Traps 1 | . . . . . . . . . 1 . Hauler Manifests 1 | . 1 . . . . . . . . . Registered Components 1 | . . . . . . . . . 1 . Zone Layout 1 | . . . . . . . . . 1 . Garrison Registry 2 | . . . . . . 1 . 1 . . Patrol Navigation 1 | . . . . . . . . 1 . . Security Stations 1 | . . . . . . . . 1 . . Proto ID Catalog 1 | . . . 1 . . . . . . . Fabricator Hacks . | . . . . . . . . . . . Repair Station Hacks 4 | . . . . . 2 . . . 2 . Scan Component 2 | . . . . . 1 . . . 1 . Repair 2 | . . . . . 1 . . . 1 . Recycling Unit Hacks 5 | . 2 . . . . . . . 3 . Process 1 | . . . . . . . . . 1 . Retrieve Matter 1 | . . . . . . . . . 1 . Retrieve Components 3 | . 2 . . . . . . . 1 . Scanalyzer . | . . . . . . . . . . . Garrison Access Hacks 3 | . . . . . 1 . 1 . 1 . Unlock Access 3 | . . . . . 1 . 1 . 1 . Unauthorized Hacks 14 | . 13 . . . . 1 . . . . Terminals 14 | . 13 . . . . 1 . . . . Track 1 | . 1 . . . . . . . . . Botnet 6 | . 5 . . . . 1 . . . . Operators 1 | . 1 . . . . . . . . . Skim 6 | . 6 . . . . . . . . . Fabricators . | . . . . . . . . . . . Repair Stations . | . . . . . . . . . . . Recycling Units . | . . . . . . . . . . . Scanalyzers . | . . . . . . . . . . . Garrison Access . | . . . . . . . . . . . Data Cores Recovered . | . . . . . . . . . . . Used . | . . . . . . . . . . . Hacking Detections 26 | . 8 . . . 3 2 3 2 7 1 Full Trace Events 2 | . . . . . 1 . 1 . . . Feedback Events . | . . . . . . . . . . . Feedback Blocked . | . . . . . . . . . . . Robot Schematics Acquired 1 | . 1 . . . . . . . . . Robots Built . | . . . . . . . . . . . Authchips . | . . . . . . . . . . . Time . | . . . . . . . . . . . Total Robot Build Rating . | . . . . . . . . . . . Part Schematics Acquired . | . . . . . . . . . . . Parts Built . | . . . . . . . . . . . Authchips . | . . . . . . . . . . . Time . | . . . . . . . . . . . Total Part Build Rating . | . . . . . . . . . . . Part Studies Acquired . | . . . . . . . . . . . Parts Repaired 2 | . . . . . 1 . . . 1 . Time 105 | . . . . . 61 . . . 44 . Parts Recycled . | . . . . . . . . . . . Recycled Matter 166 | . . . . . . . . . 166 . Retrieved Matter 166 | . . . . . . . . . 166 . Retrieved Components 12 | . 12 . . . . . . . . . Parts Scanalyzed . | . . . . . . . . . . . Part Schematics Acquired . | . . . . . . . . . . . Parts Damaged . | . . . . . . . . . . . Bothacking | -11 -10 -10 -10 -9 -8 -8 -8 -8 -8 -8 ------------ Run | Yrd Mat Min Exi Min Mat Gar Mat Gar Mat Gar Used RIF Installer 2 | . . . . . . 1 . 1 . . Patrol Navigation 1 | . . . . . . . . 1 . . Robots Hacked 28 | . . . . . . . . 10 18 . Non-combat 8 | . . . . . . . . . 8 . Combat 20 | . . . . . . . . 10 10 . Robot Hacks Applied 30 | . . . . . . . . 11 19 . parse_system 3 | . . . . . . . . 2 1 . map_walls 1 | . . . . . . . . . 1 . drop_inventory 4 | . . . . . . . . . 4 . find_recycling 1 | . . . . . . . . . 1 . map_route 1 | . . . . . . . . . 1 . scatter_targeting 1 | . . . . . . . . 1 . . spike_heat 1 | . . . . . . . . 1 . . amplify_resonance 1 | . . . . . . . . 1 . . overwrite_iff 7 | . . . . . . . . 3 4 . streamctrl_high 1 | . . . . . . . . . 1 . formatsys_low 1 | . . . . . . . . . 1 . formatsys_high 7 | . . . . . . . . 2 5 . formatsys_deep 1 | . . . . . . . . 1 . . Relay Couplers Released 25 | . . . . . . 14 . 8 . 3 Machine Destruction 25 | . . . . . . 14 . 8 . 3 Attached 8 | . . . . . . . . 4 4 . Fabnet Peak Effective % . | . . . . . . . . . . . Robots Rewired 3 | . . . . . . . . 3 . . Allies Hacked . | . . . . . . . . . . . Hacks Repelled . | . . . . . . . . . . . Allies | -11 -10 -10 -10 -9 -8 -8 -8 -8 -8 -8 -------- Run | Yrd Mat Min Exi Min Mat Gar Mat Gar Mat Gar Total Allies 25 | . . 1 . . . 2 . 9 13 . Largest Group 5 | . . 1 1 1 1 2 2 3 5 . Highest-Rated Group 112 | . . 31 31 31 31 62 62 88 112 . Highest-Rated Ally 40 | . . 31 31 31 31 31 31 40 40 . Total Orders 5 | . . . . . . . . . 5 . STAY 3 | . . . . . . . . . 3 . FOLLOW 2 | . . . . . . . . . 2 . Ally Attacks 228 | . . . . . 25 43 36 24 78 22 Total Damage 4598 | . . . . . 421 504 1061 693 970 949 Kills 38 | . . . . . 6 6 12 3 6 5 Allies Corrupted . | . . . . . . . . . . . Allies Melted . | . . . . . . . . . . . Turrets Deployed 3 | . . . . . . . 1 1 . 1 Intel | -11 -10 -10 -10 -9 -8 -8 -8 -8 -8 -8 ------- Run | Yrd Mat Min Exi Min Mat Gar Mat Gar Mat Gar Active Infowar (turns) 407 | 12 197 . . 31 167 . . . . . Sensors 198 | . . . . 31 167 . . . . . Seismic 209 | 12 197 . . . . . . . . . Robot Analysis Total 4 | . 3 . . . . . . . 1 . Derelict Logs Recovered 1 | . . . . 1 . . . . . . Drone Launches . | . . . . . . . . . . . Drone Recoveries . | . . . . . . . . . . . Exploration | -11 -10 -10 -10 -9 -8 -8 -8 -8 -8 -8 ------------- Run | Yrd Mat Min Exi Min Mat Gar Mat Gar Mat Gar Turns Passed 9657 | 62 1089 8 285 730 967 932 665 1260 2680 979 Spaces Moved 5235 | 40 638 5 255 526 523 570 370 704 1076 528 Core 2 | 2 . . . . . . . . . . Treads . | . . . . . . . . . . . Legs . | . . . . . . . . . . . Wheels 5233 | 38 638 5 255 526 523 570 370 704 1076 528 Hover . | . . . . . . . . . . . Flight . | . . . . . . . . . . . Fastest Speed 50 | 50 90 120 105 120 107 120 112 105 108 105 Average Speed 117 | 89 112 120 106 128 116 120 118 120 115 118 Slowest Speed 150 | 100 150 120 120 135 122 135 120 145 150 145 Overloaded Moves . | . . . . . . . . . . . Propulsion Burnouts . | . . . . . . . . . . . Robots Hopped . | . . . . . . . . . . . Potential Cave-ins . | . . . . . . . . . . . Cave-ins Triggered . | . . . . . . . . . . . Exploration Rate (%) 53 | 3 96 3 65 90 43 59 38 70 77 45 Regions Visited 10 Branch Regions 3 Pre-discovered Areas 3 | . 2 . 1 . . . . . . . Known Exits Taken 4 | . . 1 . . 1 . 1 . 1 . Unknown Exits Taken 4 | 1 1 . 1 1 . . . . . . Scrap Searched 1 | . . . . 1 . . . . . . Spaces Dug 18 | . . . . . . . . . . 18 Terrain Destroyed 164 | 2 39 . . . 2 . 33 10 58 20 Melee . | . . . . . . . . . . . Projectile 28 | . . . . . 2 . 17 . 9 . AOE 136 | 2 39 . . . . . 16 10 49 20 Terrain Rammed . | . . . . . . . . . . . Walls Destroyed . | . . . . . . . . . . . Machines Disabled . | . . . . . . . . . . . Actions | -11 -10 -10 -10 -9 -8 -8 -8 -8 -8 -8 --------- Run | Yrd Mat Min Exi Min Mat Gar Mat Gar Mat Gar Total 7968 | 52 934 5 270 576 810 725 545 974 2380 697 Wait 1861 | . 214 . 8 29 177 77 119 78 1141 18 Move 5225 | 39 637 4 254 525 522 569 369 703 1075 528 Hop . | . . . . . . . . . . . Pick Up 106 | 1 21 . 4 9 23 8 8 10 15 7 Fast Attach 45 | 7 6 . . . 5 . 4 8 10 5 Attach 34 | . 3 . . 3 7 3 1 3 9 5 Detach 6 | . . . 2 . 2 . . 1 . 1 Swap 75 | . 6 . . 7 3 . 5 11 31 12 Drop 94 | . 10 . 2 2 23 5 11 17 11 13 Fire 475 | 5 37 1 . 1 48 47 28 124 87 97 Melee . | . . . . . . . . . . . Ram . | . . . . . . . . . . . Kick . | . . . . . . . . . . . Crush . | . . . . . . . . . . . Escape Stasis 24 | . . . . . . 16 . . . 8 Rewire 20 | . . . . . . . . 19 1 . Trap 3 | . . . . . . . . . . 3 Miscellaneous . | . . . . . . . . . . . Route ------- -11/Scrapyard -10/Materials (discovered 5 exits: *Mat x3 / [*Min] / *Sub) -10/Mines (discovered 3 exits: Mat / *Exi / Sub) -10/Exiles -9/Mines (discovered 2 exits: *Mat x2) -8/Materials (discovered 3 exits: *Fac x2 / Gar) -8/Garrison (discovered 4 exits: *Fac x3 / *Mat) -8/Materials -8/Garrison (discovered 4 exits: *Fac x3 / *Mat) -8/Materials (discovered 4 exits: *Fac x3 / Gar) -8/Garrison (discovered 2 exits: *Fac / [*Mat]) History --------- Turn | Location | Event 8 | -11/Scrapyard | Discovered new exit (range 15) 63 | -11/Scrapyard | Entered Materials 143 | -10/Materials | Discovered new exit (range 15) 181 | -10/Materials | Discovered new exit (range 9) 284 | -10/Materials | Discovered new exit (range 13) 322 | -10/Materials | Discovered new exit (range 12) 324 | -10/Materials | Build established: Mutant 663 | -10/Materials | Derelicts attacked the area 688 | -10/Materials | Discovered new exit (range 3) 881 | -10/Materials | Learned location of Recycling (-7) 933 | -10/Materials | Learned location of 2 exits from Mines 977 | -10/Materials | Learned Recycling recycling unit intel 1010 | -10/Materials | Identified exit to Materials 1048 | -10/Materials | Loaded intel: 3 trap records 1049 | -10/Materials | Learned location of Mines (-10) 1079 | -10/Materials | Learned location of 2 exits from Materials 1108 | -10/Materials | Learned Storage garrison access intel 1148 | -10/Materials | Learned Storage terminal intel 1152 | -10/Materials | Entered Mines 1153 | -10/Mines | Met a Derelict testing a Signal Generator 1153 | -10/Mines | Identified exit to Subcaves 1154 | -10/Mines | Identified exit to Exiles 1160 | -10/Mines | Entered Exiles 1160 | -10/Exiles | Accompanied by 1 ally 1188 | -10/Exiles | Met 8R-AWN 1209 | -10/Exiles | Met EX-HEX 1243 | -10/Exiles | Met EX-BIN 1255 | -10/Exiles | Aligned with FarCom system 1256 | -10/Exiles | Given EX-Vault access code 1282 | -10/Exiles | Opened EX-Vault 1293 | -10/Exiles | Found Field Lobotomy Kit 1306 | -10/Exiles | Found Deploy-a-Sentry 1308 | -10/Exiles | Found Deploy-a-Sentry 1310 | -10/Exiles | Found Deploy-a-Sentry 1334 | -10/Exiles | Warned to stay clear of 0b10 Research branches 1364 | -10/Exiles | Met EX-DEC 1393 | -10/Exiles | Learned location of Zion (-7) 1421 | -10/Exiles | Discovered new exit (range 14) 1445 | -10/Exiles | Left Exiles lab with Deploy-a-Sentry 1445 | -10/Exiles | Entered Mines 1445 | -9/Mines | Accompanied by 1 ally 1527 | -9/Mines | Received a Rocket Launcher from a helpful Derelict 1585 | -9/Mines | Discovered new exit (range 7) 1679 | -9/Mines | Learned Materials emergency access door positions 1722 | -9/Mines | Met a Derelict who couldn't figure out how to use a Trap Extractor 1812 | -9/Mines | Discovered new exit (range 4) 1893 | -9/Mines | Found a hidden stash of uninstalled traps 2050 | -9/Mines | Found a Scrap Suit stashed away for nefarious purposes 2175 | -9/Mines | Entered Materials 2175 | -8/Materials | Accompanied by 1 ally 2175 | -8/Materials | Evolved 4 slots: Propulsion x2, Utility x2 2176 | -8/Materials | Identified exit to Factory 2576 | -8/Materials | Repaired Corrupted Microactuators? 3128 | -8/Materials | Identified exit to Garrison 3142 | -8/Materials | Entered Garrison 3233 | -8/Garrison | Discovered exit to Factory (range 66) 3233 | -8/Garrison | Discovered exit to Factory (range 64) 3233 | -8/Garrison | Discovered exit to Factory (range 36) 3233 | -8/Garrison | Discovered new exit (range 76) 3238 | -8/Garrison | Triggered checkpoint 3302 | -8/Garrison | Garrison Relay disabled 3380 | -8/Garrison | Triggered checkpoint 3402 | -8/Garrison | Triggered checkpoint 3627 | -8/Garrison | Rescued a captive Derelict 3627 | -8/Garrison | Rescued a captive Derelict 3632 | -8/Garrison | Triggered checkpoint 3667 | -8/Garrison | Installed Relay Interface Framework 3677 | -8/Garrison | Garrison Relay disabled 3866 | -8/Garrison | Triggered checkpoint 3910 | -8/Garrison | Triggered checkpoint 4015 | -8/Garrison | Garrison Relay disabled 4074 | -8/Garrison | Entered Materials 4074 | -8/Materials | Accompanied by 2 allies 4434 | -8/Materials | DAS Turret deployed 4516 | -8/Materials | Garrison activated, responded to threat 4734 | -8/Materials | Identified exit to Garrison 4739 | -8/Materials | Entered Garrison 4773 | -8/Garrison | Triggered checkpoint 4934 | -8/Garrison | Garrison Relay disabled 4998 | -8/Garrison | Triggered checkpoint 5228 | -8/Garrison | Build established: Bothacker-Mutant 5231 | -8/Garrison | Discovered exit to Factory (range 10) 5244 | -8/Garrison | Triggered checkpoint 5270 | -8/Garrison | Garrison Relay disabled 5285 | -8/Garrison | Discovered exit to Factory (range 16) 5285 | -8/Garrison | Discovered exit to Factory (range 89) 5285 | -8/Garrison | Discovered exit to Factory (range 67) 5285 | -8/Garrison | Discovered new exit (range 70) 5330 | -8/Garrison | Learned Factory security intel 5499 | -8/Garrison | Triggered checkpoint 5538 | -8/Garrison | DAS Turret deployed 5561 | -8/Garrison | Lost 4 allies 5573 | -8/Garrison | Core integrity fell below 50% 5797 | -8/Garrison | Expanded RIF knowledge: Patrol Navigation 5877 | -8/Garrison | Triggered checkpoint 5883 | -8/Garrison | Assimilated Heavy ARC 3a with formatsys_deep 5999 | -8/Garrison | Entered Materials 5999 | -8/Materials | Accompanied by 4 allies 6152 | -8/Materials | Lost 4 allies 6501 | -8/Materials | Lost 4 allies 6536 | -8/Materials | Lost 4 parts (2n2w) 6569 | -8/Materials | Discovered exit to Factory (range 16) 6651 | -8/Materials | Repaired Remote Datajack? 7331 | -8/Materials | Discovered exit to Factory (range 16) 7344 | -8/Materials | Build established: Scavenger-Mutant 8570 | -8/Materials | Garrison activated, responded to threat 8669 | -8/Materials | Discovered exit to Factory (range 10) 8676 | -8/Materials | Identified exit to Garrison 8679 | -8/Materials | Entered Garrison 8693 | -8/Garrison | Triggered checkpoint 8695 | -8/Garrison | DAS Turret deployed 8899 | -8/Garrison | Triggered checkpoint 8932 | -8/Garrison | Garrison Relay disabled 9003 | -8/Garrison | Discovered new exit (range 5) 9111 | -8/Garrison | Triggered checkpoint 9186 | -8/Garrison | Core integrity fell below 20% 9234 | -8/Garrison | System corruption reached 10% 9283 | -8/Garrison | Lost 4 parts (2n1u1w) 9520 | -8/Garrison | Build established: Mutant 9525 | -8/Garrison | Discovered exit to Factory (range 13) 9637 | -8/Garrison | Triggered checkpoint 9658 | -8/Garrison | Destroyed by G-47 Trooper with Particle Gun Last Messages --------------- 09456_ Acquired 44 matter. 09457_ Acquired 33 matter. 09458_ Dropped Imp. Medium Armor Plating. 09459_ Acquired Imp. Heat Sink. 09480_ System corrupted: Matter fused (-10). 09525_ EXIT=FOUND: FACTORY 09565_ System corrupted: Matter fused (-10). 09602_ System corrupted: Component data lost. 09619_